Cogmind - Beta 12 @@@ ROGUE MODE // 2023.08.06 @ 11:25:30 Player: JerryTheCool Result: Destroyed by S-10 Pest with Light Assault Rifle Performance ------------- Evolutions (0) 0 Regions Visited (1) 200 Robots Destroyed (5) 25 Value Destroyed (117) 117 Prototype IDs (0) 0 Alien Tech Used (0) 0 Bonus (0) 0 TOTAL SCORE: 342 Bonus ------- None Cogmind --------- Core Integrity 0/250 Matter 295/300 Energy 85/100 System Corruption 0% Temperature Cool (42) Movement Core (400) Ox7 Location -10/Materials Parts ------- > --- POWER (1) -------- (None) > --- PROPULSION (2) --- (None) > --- UTILITY (2) ------ Large Storage Unit > --- WEAPON (2) ------- Particle Gun > --- INVENTORY (15) --- (None) Peak State ------------ > --- POWER ------------ Light Ion Engine > --- PROPULSION ------- Wheel Wheel > --- UTILITY ---------- Large Storage Unit Terrain Scanner > --- WEAPON ----------- Assault Rifle Light Assault Rifle > --- INVENTORY -------- (None) [Rating: 7] Favorites ----------- Power Light Ion Engine Engine Light Ion Engine Propulsion Wheel Wheel Wheel Utility Large Storage Unit Device Terrain Scanner Storage Large Storage Unit Weapon Light Assault Rifle Energy Gun Particle Gun Ballistic Gun Light Assault Rifle Build | -11 -10 ------- Run | Jun Mat Slots Evolved . | . . Power . | . . Propulsion . | . . Utility . | . . Weapon . | . . Parts Attached 9 | 6 3 Power 1 | 1 . Engine 1 | 1 . Core . | . . Reactor . | . . Propulsion 2 | 2 . Treads . | . . Leg . | . . Wheel 2 | 2 . Hover . | . . Flight . | . . Utility 3 | 1 2 Device 1 | . 1 Storage 2 | 1 1 Processor . | . . Hackware . | . . Protection . | . . Artifact . | . . Weapon 3 | 2 1 Energy Gun 1 | . 1 Energy Cannon . | . . Ballistic Gun 2 | 2 . Ballistic Cannon . | . . Launcher . | . . Special Weapon . | . . Impact Weapon . | . . Slashing Weapon . | . . Piercing Weapon . | . . Special Melee Weapon . | . . Unidentified Prototypes . | . . Parts Lost 6 | . 6 Power 1 | . 1 Propulsion 2 | . 2 Utility 1 | . 1 Weapon 2 | . 2 Highest Loss Streak 6 | . 6 To Critical Strikes . | . . Average Slot Usage (%) 90 | . 90 Engine 12 | . 12 Wheel 26 | . 26 Device 8 | . 8 Storage 12 | . 12 Ballistic Gun 26 | . 26 Naked Turns . | . . Heaviest Build 27 | 11 27 Greatest Support 20 | 20 20 Greatest Overweight (x) 3 | 3 2 Average Overweight (x) 1 | 1 . Largest Inventory Capacity 15 | 8 15 Average Capacity 11 | 7 14 Most Carried 6 | 6 5 Average Carried 1 | 2 . Final Capacity 15 | 8 15 Final Carried . | . . Class Distribution -------------------- 100% | Mutant Dominant Class ---------------- Mutant | -10/Materials Resources | -11 -10 ----------- Run | Jun Mat Matter Collected 316 | 220 96 Remotely . | . . Salvage Created 150 | . 150 Parts 8 | . 8 Haulers Intercepted . | . . Recyclers Shooed . | . . Parts Field Recycled . | . . Retrieved Matter . | . . Parts Self-Destructed . | . . Prevented . | . . Kills | -11 -10 ------- Run | Jun Mat Combat Hostiles Destroyed 4 | . 4 Guns 4 | . 4 Classes Destroyed 3 | . 3 Watcher 1 | . 1 Swarmer 2 | . 2 Grunt 2 | . 2 Best Kill Streak 2 | . 2 Combat Bots Only 2 | . 2 Max Kills in Single Turn 1 | . 1 Gunslinging . | . . Exploded . | . . Melee . | . . Uniques/NPCs Destroyed . | . . Combat | -11 -10 -------- Run | Jun Mat Damage Taken 697 | . 697 Core 258 | . 258 Absorbed by Shields . | . . Core Remaining (%) 100 | 100 . Volleys Fired 20 | . 20 Largest 2 | . 2 Hottest 65 | . 65 Shots Fired 35 | . 35 Gun 35 | . 35 Cannon . | . . Launcher . | . . Special . | . . Kinetic 32 | . 32 Thermal 3 | . 3 Explosive . | . . Electromagnetic . | . . Robot Hit Streak 4 | . 4 Robot Miss Streak 2 | . 2 Penetration Max . | . . Secondary Targets . | . . Shots Hit Robots 23 | . 23 Core Hits 10 | . 10 Critical Kills . | . . Critical Parts Destroyed 1 | . 1 Critical Strikes 1 | . 1 Destroy 1 | . 1 Melee Attacks . | . . Impact . | . . Slashing . | . . Piercing . | . . Sneak Attacks . | . . Combat Hostiles . | . . Follow-up Attacks . | . . Damage Inflicted 286 | . 286 Guns 281 | . 281 Cannons . | . . Explosions . | . . Melee . | . . Ramming 5 | . 5 Kinetic 239 | . 239 Thermal 42 | . 42 Explosive . | . . Electromagnetic . | . . Impact . | . . Slashing . | . . Piercing . | . . Highest Corruption . | . . Average Corruption . | . . Corruption Purged . | . . Corruption Blocked . | . . Overload Shots . | . . Overflow Damage . | . . Projectiles . | . . Explosions . | . . Melee . | . . Knockbacks . | . . Impact . | . . Kinetic . | . . Secondary . | . . Self-Inflicted Damage 2 | . 2 Shots . | . . Rammed 1 | . 1 Targets Rammed 1 | . 1 Kicked . | . . Crushed . | . . Highest Temperature 42 | . 42 Average Temperature 13 | . 13 Received Heat Transfer 174 | . 174 Siege Activations . | . . Robots Corrupted . | . . Combat Hostiles . | . . Parts Fried . | . . Impact Corruptions . | . . Robots Melted . | . . Combat Hostiles . | . . Parts Melted . | . . Heat Transferred 111 | . 111 Parts Sabotaged . | . . Parts Stolen . | . . Parts Stripped . | . . Power Chain Reactions . | . . Missiles Intercepted . | . . Alert | -11 -10 ------- Run | Jun Mat Peak Influence 102 | . 102 Initial . | . . Average 19 | . 31 Maximum Alert Level . | . . Low Security (%) 100 | 100 100 Level 1 . | . . Level 2 . | . . Level 3 . | . . Level 4 . | . . Level 5 . | . . High Security . | . . Max Security . | . . Squads Dispatched . | . . Investigation . | . . Extermination . | . . Reinforcement . | . . Assault . | . . Garrison . | . . Intercept . | . . Searches Triggered . | . . Construction Impeded . | . . Haulers Reinforced . | . . Active Scanning Responses . | . . Cargo Convoy Interrupts . | . . Stealth | -11 -10 --------- Run | Jun Mat Distress Signals 3 | . 3 Communications Jammed . | . . Distress Signals . | . . Times Spotted 12 | . 12 Peak Tracking Total 9 | . 9 Tactical Retreats . | . . Traps | -11 -10 ------- Run | Jun Mat Traps Triggered . | . . Indirectly . | . . Trap Hack Attempts . | . . Triggered . | . . Disarmed . | . . Reprogrammed . | . . Reused . | . . Traps Extracted . | . . Installed . | . . Triggered . | . . Machines | -11 -10 ---------- Run | Jun Mat Machines Disabled . | . . Max in Single Turn . | . . Machines Repaired . | . . Machines Sabotaged . | . . Overloaded Fab Kills . | . . Hacking | -11 -10 --------- Run | Jun Mat Machines Accessed . | . . Terminals . | . . Fabricators . | . . Repair Stations . | . . Recycling Units . | . . Scanalyzers . | . . Garrison Access . | . . Total Hacks . | . . Successful . | . . Failed . | . . Catastrophic . | . . Database Lockouts . | . . Manual . | . . Terminals . | . . Fabricators . | . . Repair Stations . | . . Recycling Units . | . . Scanalyzers . | . . Garrison Access . | . . Terminal Hacks . | . . Fabricator Hacks . | . . Repair Station Hacks . | . . Recycling Unit Hacks . | . . Scanalyzer . | . . Garrison Access Hacks . | . . Unauthorized Hacks . | . . Terminals . | . . Fabricators . | . . Repair Stations . | . . Recycling Units . | . . Scanalyzers . | . . Garrison Access . | . . Data Cores Recovered . | . . Used . | . . Hacking Detections . | . . Full Trace Events . | . . Feedback Events . | . . Feedback Blocked . | . . Robot Schematics Acquired . | . . Robots Built . | . . Authchips . | . . Time . | . . Total Robot Build Rating . | . . Part Schematics Acquired . | . . Parts Built . | . . Authchips . | . . Time . | . . Total Part Build Rating . | . . Parts Repaired . | . . Time . | . . Parts Recycled . | . . Recycled Matter . | . . Retrieved Matter . | . . Retrieved Components . | . . Parts Scanalyzed . | . . Part Schematics Acquired . | . . Parts Damaged . | . . Bothacking | -11 -10 ------------ Run | Jun Mat Used RIF Installer . | . . Robots Hacked . | . . Non-combat . | . . Combat . | . . Robot Hacks Applied . | . . Relay Couplers Released . | . . Fabnet Peak Effective % . | . . Robots Rewired . | . . Allies Hacked . | . . Hacks Repelled . | . . Allies | -11 -10 -------- Run | Jun Mat Total Allies . | . . Largest Group . | . . Highest-Rated Group . | . . Highest-Rated Ally . | . . Total Orders . | . . Ally Attacks . | . . Total Damage . | . . Kills . | . . Allies Corrupted . | . . Allies Melted . | . . Intel | -11 -10 ------- Run | Jun Mat Robot Analysis Total . | . . Derelict Logs Recovered . | . . Drone Launches . | . . Drone Recoveries . | . . Exploration | -11 -10 ------------- Run | Jun Mat Turns Passed 353 | 137 216 Spaces Moved 261 | 103 158 Core 83 | 83 . Treads . | . . Legs . | . . Wheels 178 | 20 158 Hover . | . . Flight . | . . Fastest Speed 50 | 50 80 Average Speed 101 | 114 93 Slowest Speed 200 | 200 110 Overloaded Moves . | . . Propulsion Burnouts . | . . Robots Hopped . | . . Cave-ins Triggered . | . . Exploration Rate (%) 13 | 6 20 Regions Visited 1 Branch Regions . Pre-discovered Areas . | . . Known Exits Taken . | . . Unknown Exits Taken 1 | 1 . Scrap Searched . | . . Spaces Dug . | . . Terrain Destroyed . | . . Melee . | . . Projectile . | . . AOE . | . . Terrain Rammed . | . . Walls Destroyed . | . . Machines Disabled . | . . Actions | -11 -10 --------- Run | Jun Mat Total 321 | 124 197 Wait 3 | . 3 Move 260 | 102 158 Hop . | . . Pick Up 18 | 11 7 Fast Attach . | . . Attach 9 | 6 3 Detach . | . . Swap . | . . Drop 10 | 5 5 Fire 20 | . 20 Melee . | . . Ram 1 | . 1 Kick . | . . Crush . | . . Escape Stasis . | . . Rewire . | . . Trap . | . . Miscellaneous . | . . Route ------- -11/Junkyard -10/Materials History --------- Turn | Location | Event 11 | -11/Junkyard | Discovered new exit (range 16) 138 | -11/Junkyard | Entered Materials 303 | -10/Materials | Build established: Mutant 335 | -10/Materials | Core integrity fell below 50% 347 | -10/Materials | Core integrity fell below 20% 354 | -10/Materials | Destroyed by S-10 Pest with Light Assault Rifle Last Messages --------------- K-01 Serf collects debris. G-34 Mercenary destroyed. Acquired 50 matter. K-01 Serf collects debris. Acquired 46 matter. Acquired Particle Gun. K-01 Serf cleans the Electrolysis Chamber. K-01 Serf collects debris. W-16 Scout sends out distress signal. W-16 Scout destroyed. Lgt. Ion Engine destroyed. Slammed into G-34 Mercenary. Wheel destroyed. Assault Rifle destroyed. Lgt. Assault Rifle destroyed. Terrain Scanner destroyed. S-10 Pest destroyed. K-01 Serf cleans the Fusion Modulator. Wheel destroyed. S-10 Pest destroyed. Map ----- +----------------------------------------------------+ | ?????????????????????????????????????????????? | | ?????????????????????????????????????????????? | | ?????????????????????????????????????????????? | | ?????????????????????????????????????????????? | | ?????????????????????????????? ??????????????? | | ?????????????????????????????? ??????????????? | | ?????????????????????????????? ??????????????? | | ?????????????????????????????? ??????????????? | | ?????????????????????????????? ?????????????? | | ?????????????????????????????? ??????????????? | | ????????????????############## ?#???#???????? | | ????????????????# ?? ????????? | | ????????????????# ????????? | | ???????????????? """ """ """ ""????????? | | ????????????????# """ """ """ ""????????? | | ????????????????# """ """ """ """ ?????? | | ???????????"????# ????? | | ????????????#???# k ????? | | ??????????????### """ """ """ " #???? | | ???????#?????## """ """% """ T #???? | | ??????????????# """ """! """ " #???? | | ??????????????# = g #???? | | ??????????????# %s #???? | | ???????#??????# ##s########## #???? | | ?????????????### ##ss #???? ??? #?? | | ?############### ##@ #????????? #?? | | ?#! # ## #?? ????+?? ??? | | ?# """ """ # ## ] #?????? ? ?? ??? | | ?# "" """ """ # ## #???????????? ???? | | ?# "T """ """ #[ ## #???"?"????????? ???? | | ?# "" """ """ #=%=## #????????????????????? | | ## + = ######????????????????????? | | ?############### #????#????????????????????? | | ?????#??????#### #?????????????????????????? | | ???????????## #######???????????????????? | | ???????????# # #???????????????????? | | ???????????# # #???????????????????? | | ???????????# # " #???????????????????? | | ??????????## # """ #???????????????????? | | ??????????###!! # """ #???????????????????? | | ????????????#### # """ #???????????????????? | | ???????????????# + "" #???????????????????? | | ???????#????#??# # """ #???????????????????? | | ???????????????# # "" #???????????????????? | | ???????????#??###### "" #???????????????????? | | ???????????????????# " #???????????????????? | | ???????????????????# #???????????????????? | | ???????????????????#######???????????????????? | | ?????????????????????????????????????????????? | | ?????????????????????????????????????????????? | +----------------------------------------------------+ Best States ------------- Heat Dissipation 25 Energy Generation 10 Energy Capacity 125 Matter Stores 300 Matter Capacity 300 Sight Range 16 Terrain Scan Range 14 Terrain Scan Density 10 Evasion (%) 50 Item Schematics ----------------- None Robot Schematics ------------------ None Fabricated ------------ Nothing Alien Tech Used ----------------- None Achievements -------------- None Challenges ------------ None Game ------ Seed GuidanceChromaticRailgun Manual? 0 Play Time 00:10:25 Cumulative 48.9 hours Start 2023.08.06 @ 11:09:03 End 2023.08.06 @ 11:25:30 Sessions 1 Manual Loads 0 Difficulty Rogue Special Mode None Game No. 75 Rogue 73 Adventurer 2 Explorer 0 Win Type - Total 0 Types 0/0/0/0/0/0/0/0/0 Lore% 5 Gallery% 21 Achievement% 8 Wizard Run 0 Options --------- ASCII 0 Keyboard 0 Movement Arrows Keybinds 0 Fullscreen 1 Font 14/SmallcapsGlow Map View 84x54 Tactical HUD 0 Map Filters NONE Filters NONE Steam 1 RUN: 2aebb57d-51f2-4c6a-b118-e0e5753c38c4